{"text_format":"1","workbook":"xlsx","n_sheets":3,"sheets":["2020 ГОСТ 34278-2017 Муфты","Справочные данные","2021"],"not_rendered":{"charts":0,"images":0,"macros":1,"external_links":0,"defined_names":3,"comments":0,"pivot_tables":0},"unopened":[],"bounds":{"document_bytes":16777216,"sheet_cells":100000,"rows_first":2000,"rows_last":500,"rows_between":2000,"halvings":0,"cell_chars":16384,"cell_head_chars":4096},"cells_cut":0,"cells_raw":0,"read":"whole","date_system":"1900"}

{"sheet":"2020 ГОСТ 34278-2017 Муфты","index":0,"n_rows":51,"n_cols":21,"rows_kept":51,"cut":false,"hidden":false,"merged":[[0,0,0,11],[2,6,2,11],[3,6,3,11],[4,6,4,11],[5,6,5,11],[10,0,12,11],[13,0,13,4],[14,0,14,11],[15,0,15,11],[17,9,17,11],[19,5,19,11],[20,5,20,11],[21,5,21,11],[22,5,22,11],[23,5,23,11],[24,5,24,11],[25,5,25,11],[26,5,26,11],[28,10,28,11],[34,0,34,1],[34,2,34,3],[34,4,34,5],[34,6,34,7],[34,8,34,11],[35,2,35,3],[35,4,35,5],[35,6,35,7],[35,8,35,9],[35,10,35,11],[36,0,38,1],[36,2,36,3],[36,4,36,5],[36,6,36,7],[36,8,36,11],[37,2,37,3],[37,4,37,5],[37,6,37,7],[37,8,37,11],[38,2,38,3],[38,4,38,5],[38,6,38,7],[38,8,38,11],[40,7,40,9],[43,4,43,11],[48,1,48,6],[50,1,50,6]]}
["Протокол не может быть воспроизведен полностью или частично без письменного разрешения испытательной лаборатории",null,null,null,null,null,null,null,null,null,null,null,null,"№ протокола","1",null,"кН","МПа","Место разрушения","Р100М","-"]
[null,null,null,null,null,null,null,null,null,null,null,null,null,"Данные о месте","-","Образец 1",null,null,"по основному металлу","Щтангенциркуль","-"]
[null,null,null,null,null,null,"Лаборатория",null,null,null,null,null,null,"ФИО сварщика","ФИО","Образец 2",null,null,"по основному металлу","Термогигрометр","-"]
[null,null,null,null,null,null,"адрес",null,null,null,null,null,null,"Тип соединения","несварное стыковое муфтовое соединение","Образец 3",null,null,"по основному металлу","Наименование объекта","-"]
[null,null,null,null,null,null,{"$f":"U5","v":"-"},null,null,null,null,null,null,"Объем партии",null,"Заключение","соответствует",null,null,"Аттестация","-"]
[null,null,null,null,null,null,{"$f":"U6","v":0},null,null,null,null,null,null,"Номер выборки","3 шт","норматив","ТУ 0908-012-01393674-2007",null,null,"№"]
[null,null,null,null,null,null,null,null,null,null,null,null,null,"Диаметр",null,"Дата испытания"]
["Объект:",null,null,null,null,null,null,null,null,null,null,null,null,"Класс арматурной стали","АI","Условия и дата отбора","+5ºС, без осадков, 19.03.2020 г. 10:00",null,null,"Сканы"]
[null,null,null,null,null,null,null,null,null,null,null,null,null,"Марка соединительной муфты, коротыша","32AIII Ст20, Ст40Х сертификат №1-1981 от 10.03.2020","Подписи","Должность","ФИО",null,"ctrl+и (рус)","для копирования и печати"]
[null,null,null,null,null,null,null,null,null,null,null,null,null,"Площадь поперечного",null,null,"Должность","ФИО"]
[{"$f":"\"Объект строительства: \"&U4","v":"Объект строительства: -"}]
[]
[]
[]
[{"$f":"\"Протокол №\"&O1","v":"Протокол №1"}]
["испытаний механических соединений"]
[]
[null,null,null,null,null,null,null,null,null,{"$f":"Q7","v":"00:00:00"}]
[]
["Данные о месте выполнения соединений",null,null,null,null,{"$f":"O2","v":"-"}]
["Ф.И.О. монтажника",null,null,null,null,{"$f":"O3","v":"ФИО"},null,null,null,null,null,null,"Вставка \"значения\" в ячейку N1 из листа 2021"]
["Условия, дата сборки",null,null,null,null,{"$f":"Q8","v":"+5ºС, без осадков, 19.03.2020 г. 10:00"}]
["Тип соединения",null,null,null,null,{"$f":"O4","v":"несварное стыковое муфтовое соединение"}]
["Объем партии, число изделий",null,null,null,null,{"$f":"O5","v":0}]
["Номер выборки",null,null,null,null,{"$f":"O6","v":"3 шт"}]
["Диаметр(ы) и класс соединяемой арматуры",null,null,null,null,{"$f":"O7&\" \"&O8","v":" АI"}]
["Марка соединительной муфты, коротыша",null,null,null,null,{"$f":"O9","v":"32AIII Ст20, Ст40Х сертификат №1-1981 от 10.03.2020"}]
[]
["Площадь поперечного сечения стержня, мм2, к которому прикладывают контрольную нагрузку",null,null,null,null,null,null,null,null,null,{"$f":"O10","v":0}]
["Приборы и оборудование:"]
[{"$f":"U1","v":"-"}]
[{"$f":"U2","v":"-"}]
[{"$f":"U3","v":"-"}]
[]
["Результаты испытаний",null,"Номер образца",null,"Разрывное усилие P, кН (кгс)",null,"Предел прочности σ, Н/мм2",null,"Характер разрушения"]
[]
[null,null,1,null,{"$f":"Q2","v":0},null,{"$f":"R2","v":0},null,{"$f":"S2","v":"по основному металлу"}]
[null,null,2,null,{"$f":"Q3","v":0},null,{"$f":"R3","v":0},null,{"$f":"S3","v":"по основному металлу"}]
[null,null,3,null,{"$f":"Q4","v":0},null,{"$f":"R4","v":0},null,{"$f":"S4","v":"по основному металлу"}]
[]
["ЗАКЛЮЧЕНИЕ. Испытанные механические соединения",null,null,null,null,null,null,{"$f":"Q5","v":"соответствует"}]
[{"$f":"\"требованиям \"&Q6&\".\"","v":"требованиям ТУ 0908-012-01393674-2007."}]
[]
["Партия механических соединений ",null,null,null,{"$f":"IF(H41=\"соответствует\", \"подлежит приемке\",\"не подлежит приемке\")","v":"подлежит приемке"}]
[]
[]
[]
[]
["Испытал:",{"$f":"Q9","v":"Должность"},null,null,null,null,null,null,null,{"$f":"\"/\"&R9&\"/\"","v":"/ФИО/"}]
[]
[null,{"$f":"Q10","v":"Должность"},null,null,null,null,null,null,null,{"$f":"\"/\"&R10&\"/\"","v":"/ФИО/"}]

{"sheet":"Справочные данные","index":1,"n_rows":21,"n_cols":2,"rows_kept":21,"cut":false,"hidden":false,"merged":[]}
["Диаметр","Площадь"]
[6,28.3]
[8,50.3]
[10,78.5]
[12,113.1]
[14,154]
[16,201]
[18,254]
[20,314]
[22,380]
[25,491]
[28,616]
[32,804]
[36,1018]
[40,1257]
[45,1500]
[50,1963]
[55,2376]
[60,2827]
[70,3848]
[80,5027]

{"sheet":"2021","index":2,"n_rows":11,"n_cols":8,"rows_kept":11,"cut":false,"hidden":false,"merged":[[0,0,0,1],[0,2,0,5],[0,6,0,7],[9,2,10,2]]}
["Данные о происхождении образцов",null,"Данные по испытаниям",null,null,null,"Оборудование, Объект строительства"]
["№ протокола","1",null,"кН","МПа","Место разрушения","Р100М","-"]
["Данные о месте","-","Образец 1",506.7,{"$f":"D3/B11*1000","v":630.223880597015},"по основному металлу","Щтангенциркуль","-"]
["ФИО сварщика","ФИО","Образец 2",502.5,{"$f":"D4/B11*1000","v":625},"по основному металлу","Термогигрометр","-"]
["Тип соединения","несварное стыковое муфтовое соединение","Образец 3",523.4,{"$f":"D5/B11*1000","v":650.995024875622},"по основному металлу","Наименование объекта","-"]
["Объем партии",29,"Заключение","соответствует",null,null,"Аттестация","-"]
["Номер выборки","3 шт","норматив","ТУ 0908-012-01393674-2007",null,null,"№"]
["Диаметр",32,"Дата испытания","2020-07-22"]
["Класс арматурной стали","АI","Условия и дата отбора","+5ºС, без осадков, 19.03.2020 г. 10:00",null,null,"Сканы"]
["Марка соединительной муфты, коротыша","32AIII Ст20, Ст40Х сертификат №1-1981 от 10.03.2020","Подписи","Должность","ФИО",null,"ctrl+и (рус)","для копирования и печати"]
["Площадь поперечного",{"$f":"VLOOKUP(B8,'Справочные данные'!A1:B21,2,TRUE())","v":804},null,"Должность","ФИО"]